bitfinex/quotes_BTCUSD_20250313
["timestamp","ask_amount","ask_price","bid_price","bid_amount"]
[1741882708234,0.012326,81126.0,81121.0,0.25887]
[1741882708584,0.012326,81126.0,81120.0,0.012327]
[1741882708585,0.246536,81125.0,81120.0,0.012327]
[1741882708789,0.012328,81113.0,81103.0,0.01233]
[1741882708993,0.24659,81107.0,81099.0,0.15844]
[1741882709280,0.012329,81106.0,81099.0,0.15844]
[1741882709489,0.13325417,81106.0,81091.0,1.041887]
[1741882709654,0.13325417,81106.0,81093.0,0.246629]
[1741882709983,0.13325417,81106.0,81087.0,0.246647]
[1741882709984,0.13325417,81106.0,81105.0,0.0021691]
[1741882710200,0.43325417,81106.0,81105.0,0.0021691]
[1741882710395,0.43325417,81106.0,81105.0,0.0001691]
[1741882710396,0.44657084,81106.0,81105.0,0.0001691]
[1741882710597,0.44657084,81106.0,81105.0,0.0011691]
[1741882711921,0.44657084,81106.0,81105.0,0.0021691]
[1741882712124,0.43202999,81106.0,81105.0,0.0021691]
[1741882712326,0.41970099,81106.0,81105.0,0.0021691]
[1741882712535,0.43202999,81106.0,81105.0,0.0021691]
[1741882713018,0.43202999,81106.0,81105.0,0.0011691]
[1741882713176,0.43202999,81106.0,81105.0,0.0001691]
[1741882713378,0.43502999,81106.0,81105.0,0.0001691]
[1741882714819,0.43536839,81106.0,81105.0,0.0001691]
[1741882715049,0.42003939,81106.0,81105.0,0.0001691]
[1741882715293,0.43236839,81106.0,81105.0,0.0001691]
[1741882715826,0.43336839,81106.0,81105.0,0.0001691]
[1741882716055,0.0033384,81106.0,81105.0,0.0001691]
[1741882716370,0.0146674,81106.0,81105.0,0.0001691]
[1741882716570,0.0136674,81106.0,81105.0,0.0001691]
[1741882717316,0.13559257,81106.0,81105.0,0.0001691]
[1741882717531,0.13459257,81106.0,81105.0,0.0001691]
[1741882718315,0.13359257,81106.0,81105.0,0.0001691]
[1741882718590,0.13236839,81106.0,81105.0,0.0011691]
[1741882718787,0.13359257,81106.0,81105.0,0.0011691]
[1741882719040,0.43359257,81106.0,81105.0,0.0011691]
[1741882719153,0.43236839,81106.0,81105.0,0.0001691]
[1741882719354,0.43336839,81106.0,81105.0,0.0001691]
[1741882719617,0.43436839,81106.0,81105.0,0.0001691]
[1741882719792,0.43236839,81106.0,81105.0,0.0001691]
[1741882720192,0.012331,81096.0,81075.0,0.15828]
[1741882720417,0.11970099,81096.0,81094.0,0.246625]
[1741882720593,0.11970099,81096.0,81094.0,0.258956]
[1741882720793,0.3,81107.0,81095.0,0.246624]
[1741882720995,0.246609,81100.0,81088.0,0.246643]
[1741882721219,0.12092517,81099.0,81075.0,0.15828]
[1741882721556,0.012332,81089.0,81079.0,0.012333]
[1741882721906,0.258949,81097.0,81086.0,0.258983]
[1741882722108,0.15812,81104.0,81093.0,0.012331]
[1741882722312,0.15812,81104.0,81102.0,0.01233]
[1741882722542,0.0003384,81106.0,81103.0,0.25893]
[1741882722874,0.0003384,81106.0,81099.0,0.25894]
[1741882723053,0.0003384,81106.0,81105.0,0.258922]
[1741882724411,0.0003384,81106.0,81105.0,0.260922]
[1741882724617,0.0003384,81106.0,81105.0,1.760922]
[1741882725142,0.0003384,81106.0,81105.0,0.002]
[1741882725746,0.0003384,81106.0,81105.0,0.014329]
[1741882731739,0.0003384,81106.0,81105.0,0.002]
[1741882731976,0.0126674,81106.0,81105.0,0.002]
[1741882732563,0.0003384,81106.0,81105.0,0.002]
[1741882732803,0.01255467,81106.0,81105.0,0.002]
[1741882733228,0.0003384,81106.0,81103.0,0.0001691]
[1741882733375,0.01238819,81106.0,81103.0,0.0001691]
[1741882733573,0.0003384,81106.0,81103.0,0.0001691]
[1741882734110,0.0003384,81106.0,81105.0,0.002]
[1741882734514,0.0003384,81106.0,81103.0,0.0001691]
[1741882734715,0.0003384,81106.0,81104.0,0.246594]
[1741882734922,0.0003384,81106.0,81105.0,0.012329]
[1741882735504,0.0003384,81106.0,81105.0,1.51356195]
[1741882735703,0.012326,81126.0,81120.0,0.012327]
[1741882735960,0.012326,81123.0,81116.0,0.246557]
[1741882736160,0.01251542,81130.0,81126.0,0.012326]
[1741882736373,0.092624,81139.0,81126.0,0.012326]
[1741882736551,0.246516,81131.0,81123.0,0.258863]
[1741882736728,0.258841,81131.0,81124.0,0.258859]
[1741882737052,0.006,81126.0,81125.0,0.012326]
[1741882737203,0.003,81126.0,81125.0,0.012326]
[1741882737401,0.003,81126.0,81122.0,0.246539]
[1741882737631,0.003,81126.0,81122.0,0.258866]
[1741882737828,0.012326,81129.0,81122.0,0.258866]
[1741882738027,0.012326,81129.0,81123.0,0.012326]
[1741882738316,0.246535,81125.0,81118.0,0.246551]
[1741882738466,0.012327,81122.0,81113.0,0.246568]
[1741882738674,0.012326,81123.0,81117.0,0.246557]
[1741882738887,0.012326,81126.0,81119.0,0.012327]
[1741882739294,0.258848,81129.0,81121.0,0.246545]
[1741882739486,0.012326,81128.0,81122.0,0.258866]
[1741882739841,0.10894756,81133.0,81129.0,0.012326]
[1741882740140,0.10894756,81133.0,81132.0,0.258836]
[1741882740537,0.11438969,81133.0,81132.0,0.258836]
[1741882740693,0.012324,81137.0,81129.0,0.012326]
[1741882741041,0.258821,81137.0,81130.0,0.246515]
[1741882741191,0.246502,81135.0,81129.0,0.258846]
[1741882741531,0.246502,81135.0,81132.0,0.003]
[1741882741745,0.0177671,81136.0,81132.0,0.003]
[1741882741958,0.012325,81133.0,81132.0,0.003]
[1741882742586,0.11970099,81135.0,81132.0,0.003]
[1741882742755,0.0054431,81136.0,81135.0,0.012325]
[1741882742963,0.246473,81145.0,81139.0,0.24649]
[1741882743158,0.02450297,81147.0,81143.0,0.012323]
[1741882743159,0.00546694,81144.0,81143.0,0.012323]
[1741882743364,0.2467912,81152.0,81147.0,0.246465]
[1741882743532,0.01779117,81151.0,81140.0,0.012324]
[1741882743733,0.012323,81145.0,81135.0,0.258824]
[1741882743961,0.012324,81141.0,81135.0,0.258824]
[1741882744176,0.00549536,81140.0,81138.0,0.012324]
[1741882744376,0.00549536,81140.0,81139.0,0.258814]
[1741882744578,0.0013382,81152.0,81151.0,0.258776]
[1741882744937,0.00053108,81152.0,81151.0,0.258776]
[1741882745108,0.00053108,81152.0,81146.0,0.012323]
[1741882745320,0.012322,81151.0,81146.0,0.258789]
[1741882745535,0.00558654,81151.0,81150.0,0.012322]
[1741882745685,0.00178731,81151.0,81150.0,0.012322]
[1741882745886,0.0124901,81159.0,81153.0,0.258767]
[1741882746088,0.27112892,81159.0,81153.0,0.012322]
[1741882746301,0.00558749,81158.0,81154.0,0.246445]
[1741882746500,0.01790849,81158.0,81153.0,0.012322]
[1741882746668,0.00558749,81158.0,81153.0,0.258767]
[1741882746877,0.00558749,81158.0,81157.0,0.258756]
[1741882747117,0.00177913,81158.0,81157.0,0.258756]
[1741882747317,0.0021691,81159.0,81157.0,0.012321]
[1741882747569,0.0021691,81159.0,81154.0,0.012322]
[1741882747776,0.012324,81139.0,81131.0,0.15716]
[1741882747996,0.012326,81124.0,81109.0,0.01261737]
[1741882748196,0.246575,81111.0,81109.0,0.01261737]
[1741882748406,0.258894,81115.0,81109.0,0.01261737]
[1741882748580,0.312326,81126.0,81118.0,0.012327]
[1741882748799,0.246539,81123.0,81119.0,0.246551]
[1741882749001,0.012327,81117.0,81110.0,0.012328]
[1741882749203,0.012328,81114.0,81104.0,0.952209]
[1741882749376,0.012329,81109.0,81104.0,0.78264]
[1741882749558,0.012327,81117.0,81107.0,0.012329]
[1741882749757,0.012327,81117.0,81111.0,0.246573]
[1741882750016,0.246551,81119.0,81113.0,0.258895]
[1741882750181,0.012328,81115.0,81110.0,0.012328]
[1741882750381,0.012328,81115.0,81109.0,0.25891]
[1741882750610,0.012328,81113.0,81104.0,0.78364]
[1741882750805,0.258919,81107.0,81104.0,0.78464]
[1741882751006,0.246578,81111.0,81105.0,0.25892]
[1741882751248,0.246578,81111.0,81104.0,0.78464]
[1741882751249,0.012329,81105.0,81104.0,0.78264]
[1741882751452,0.258922,81105.0,81104.0,0.78264]
[1741882751566,0.012329,81104.0,81096.0,0.246618]
[1741882751765,0.012329,81104.0,81097.0,0.01233]
[1741882752013,0.37860699,81111.0,81101.0,0.01233]
[1741882752324,0.012329,81109.0,81104.0,0.258925]
[1741882752588,0.012329,81108.0,81103.0,0.0124991]
[1741882752762,0.012329,81104.0,81103.0,0.0001691]
[1741882752988,0.01355318,81104.0,81103.0,0.0001691]
[1741882753211,0.012329,81104.0,81103.0,0.0001691]
[1741882753592,0.13325417,81104.0,81103.0,0.0001691]
[1741882754027,0.43325417,81104.0,81103.0,0.0031691]
[1741882754234,0.55199088,81104.0,81103.0,1e-07]
[1741882754447,0.259025,81073.0,81067.0,0.0003382]
[1741882754646,0.012334,81074.0,81068.0,0.012335]
[1741882754848,0.259025,81073.0,81068.0,0.246706]
[1741882754988,0.259025,81073.0,81067.0,0.0003382]
[1741882755196,0.012334,81071.0,81067.0,0.0003382]
[1741882756025,0.00560333,81072.0,81067.0,0.0003382]
[1741882756226,0.00560333,81072.0,81071.0,0.012334]
[1741882756627,0.01203636,81076.0,81071.0,0.012334]
[1741882756829,0.543211,81102.0,81074.0,0.012334]
[1741882757185,0.258983,81086.0,81078.0,0.012333]
[1741882757335,0.25899,81084.0,81078.0,0.012333]
[1741882757757,0.01261811,81084.0,81078.0,0.012333]
[1741882757959,0.312332,81087.0,81080.0,0.012333]
[1741882757960,0.546648,81087.0,81080.0,0.012333]
[1741882758155,0.258988,81085.0,81079.0,0.246672]
[1741882758356,0.003,81086.0,81082.0,0.246663]
[1741882758581,0.003,81086.0,81079.0,0.012333]
[1741882758582,0.012332,81084.0,81079.0,0.259003]
[1741882758945,0.261985,81086.0,81081.0,0.258999]
[1741882759151,0.25899,81084.0,81079.0,0.012333]
[1741882759363,0.013332,81084.0,81079.0,0.012333]
[1741882759587,0.012333,81081.0,81075.0,0.012334]
[1741882759809,0.24666,81083.0,81076.0,0.012334]
[1741882759966,0.258993,81083.0,81076.0,0.012334]
[1741882760194,0.258993,81083.0,81077.0,0.259012]
[1741882760393,0.012332,81084.0,81077.0,0.259011]
[1741882760826,0.11970099,81091.0,81088.0,0.012332]
[1741882761193,0.0122566,81091.0,81090.0,0.25897]
[1741882761340,0.0245876,81091.0,81085.0,0.258984]
[1741882761545,0.012331,81096.0,81088.0,0.012332]
[1741882761764,0.01233804,81098.0,81097.0,0.258946]
[1741882761959,0.01233,81103.0,81097.0,0.258946]
[1741882762159,0.295585,81108.0,81097.0,0.258946]
[1741882762160,0.02179579,81109.0,81101.0,0.01233]
[1741882762360,0.11970099,81108.0,81103.0,0.2466]
[1741882762727,0.00946679,81109.0,81107.0,0.258916]
[1741882762911,0.00946679,81109.0,81105.0,0.246591]
[1741882763119,0.258913,81109.0,81102.0,0.258931]
[1741882763306,0.012329,81109.0,81102.0,0.258931]
[1741882763604,0.012329,81109.0,81100.0,0.246606]
[1741882763605,0.012329,81106.0,81100.0,0.246606]
[1741882763814,0.0003384,81103.0,81102.0,0.246603]
[1741882764039,0.0003384,81103.0,81098.0,0.01233]
[1741882764246,0.012331,81096.0,81090.0,0.258967]
[1741882764462,0.25897,81090.0,81084.0,0.1564]
[1741882764663,0.246616,81098.0,81086.0,0.012332]
[1741882764811,0.258942,81099.0,81094.0,0.012331]
[1741882765011,0.0003384,81103.0,81099.0,0.01233]
[1741882765217,0.0003384,81103.0,81102.0,0.01233]
[1741882765822,0.0003384,81103.0,81102.0,0.01433]
[1741882766024,0.0003384,81103.0,81102.0,0.01533]
[1741882766226,4e-07,81103.0,81102.0,0.1487057]
[1741882766425,4e-07,81103.0,81102.0,0.46024655]
[1741882766627,4e-07,81103.0,81102.0,0.46401362]
[1741882766839,4e-07,81103.0,81102.0,0.62053362]
[1741882767336,4e-07,81103.0,81102.0,0.61841362]
[1741882767689,4e-07,81103.0,81102.0,0.64153383]
[1741882767927,0.0003382,81135.0,81102.0,0.64153383]
[1741882767928,0.0003382,81135.0,81134.0,0.25883]
[1741882769066,0.0003382,81135.0,81134.0,0.25783]
[1741882769395,0.0003382,81135.0,81132.0,0.258834]
[1741882769603,0.0003382,81135.0,81120.0,0.246547]
[1741882769604,0.012326,81129.0,81120.0,0.246547]
[1741882769799,0.012326,81129.0,81119.0,0.012327]
[1741882769800,0.258836,81133.0,81127.0,0.25885]
[1741882770002,0.012325,81133.0,81127.0,0.25885]
[1741882770248,0.0013382,81135.0,81131.0,0.012325]
[1741882770432,0.0003382,81135.0,81132.0,0.012325]
[1741882770648,0.012325,81133.0,81124.0,0.258861]
[1741882770803,0.0126632,81135.0,81122.0,0.001]
[1741882771004,0.0003382,81135.0,81127.0,0.012326]
[1741882771281,0.25883,81134.0,81129.0,0.012326]
[1741882771483,0.258836,81133.0,81127.0,0.246526]
[1741882771678,0.246515,81131.0,81127.0,0.012326]
[1741882771923,0.258836,81133.0,81127.0,0.012326]
[1741882772050,0.012325,81134.0,81129.0,0.012326]
[1741882772253,0.2591672,81135.0,81129.0,0.012326]
[1741882772655,0.0003382,81135.0,81134.0,0.25883]
[1741882773078,0.0003382,81135.0,81132.0,0.246511]
[1741882773400,0.0013382,81135.0,81134.0,0.012325]
[1741882773720,0.0003382,81135.0,81134.0,0.012325]
[1741882774129,0.0003382,81135.0,81134.0,0.16976]
[1741882774753,0.0003382,81135.0,81134.0,1.66976]
[1741882775359,0.0003382,81135.0,81134.0,1.66876]
[1741882775559,0.0003382,81135.0,81134.0,1.78846099]
[1741882775762,2e-07,81135.0,81134.0,2.10600184]
[1741882775960,2e-07,81135.0,81134.0,2.11832582]
[1741882776281,0.000169,81171.0,81158.0,0.258753]
[1741882776282,0.258723,81168.0,81158.0,0.258753]
[1741882776482,0.01232,81166.0,81158.0,0.258753]
[1741882776638,0.246408,81166.0,81158.0,0.258753]
[1741882777009,0.246408,81166.0,81156.0,0.012321]
[1741882777010,0.012321,81162.0,81156.0,0.012321]
[1741882777132,0.258753,81158.0,81151.0,0.012322]
[1741882777333,0.012321,81161.0,81152.0,0.012322]
[1741882777535,0.246427,81160.0,81155.0,0.012322]
[1741882777973,0.258724,81168.0,81158.0,0.013321]
[1741882778182,0.25894529,81166.0,81158.0,0.013321]
[1741882778558,0.258724,81168.0,81158.0,0.013321]
[1741882778763,0.258728,81167.0,81158.0,0.013321]
[1741882779092,0.012321,81160.0,81158.0,0.001]
[1741882779298,0.258756,81157.0,81156.0,0.002]
[1741882779524,0.246457,81150.0,81143.0,0.012323]
[1741882779682,0.012323,81146.0,81140.0,0.012324]
[1741882780069,0.012323,81146.0,81141.0,0.012324]
[1741882780288,0.246488,81140.0,81134.0,0.012325]
[1741882780492,0.012323,81147.0,81140.0,0.012324]
[1741882780888,0.012323,81148.0,81143.0,0.259798]
[1741882781094,0.012323,81149.0,81144.0,0.258796]
[1741882781290,0.012323,81149.0,81144.0,0.012323]
[1741882781491,0.012322,81150.0,81144.0,0.012323]
[1741882781703,0.13202299,81150.0,81145.0,0.012323]
[1741882781874,0.11970099,81150.0,81147.0,0.246465]
[1741882782271,0.11970099,81150.0,81146.0,0.012323]
[1741882782748,0.11970099,81150.0,81144.0,0.012323]
[1741882782749,0.012323,81149.0,81144.0,0.012323]
[1741882783010,0.012323,81144.0,81141.0,0.002]
[1741882783187,0.258788,81148.0,81141.0,0.012324]
[1741882783388,0.012323,81145.0,81139.0,0.246488]
[1741882783527,0.11970099,81150.0,81142.0,0.012324]
[1741882783731,0.11970099,81150.0,81147.0,0.258786]
[1741882784061,0.36615799,81150.0,81145.0,0.012323]
[1741882784274,0.246471,81146.0,81141.0,0.250483]
[1741882784429,0.012323,81145.0,81141.0,0.004]
[1741882784788,0.258798,81145.0,81141.0,0.004]
[1741882784994,0.012323,81149.0,81142.0,0.258805]
[1741882785169,0.012323,81149.0,81143.0,0.012323]
[1741882785758,0.258791,81147.0,81139.0,0.258814]
[1741882785964,0.012324,81142.0,81132.0,0.012325]
[1741882786156,0.258815,81139.0,81133.0,0.012325]
[1741882786361,0.246505,81134.0,81127.0,0.15524]
[1741882786581,0.246513,81132.0,81128.0,1.5]
[1741882786785,0.012324,81137.0,81128.0,1.74652]
[1741882786962,0.246493,81139.0,81129.0,0.012326]
[1741882787318,0.012324,81137.0,81131.0,0.012325]
[1741882787480,0.012324,81137.0,81131.0,0.258839]
[1741882787648,0.258823,81137.0,81131.0,0.258839]
[1741882788260,0.246501,81136.0,81131.0,0.258839]
[1741882788885,0.25885,81128.0,81127.0,0.0003378]
[1741882789116,0.37855099,81128.0,81127.0,0.0003378]
[1741882789321,0.0001689,81134.0,81132.0,0.246509]
[1741882789721,0.0001689,81134.0,81131.0,0.246514]
[1741882789990,0.0001689,81134.0,81128.0,0.002]
[1741882789991,0.25854154,81129.0,81128.0,0.002]
[1741882790110,0.012326,81128.0,81127.0,0.0003378]
[1741882790348,0.013326,81128.0,81127.0,0.0003378]
[1741882790761,0.012326,81128.0,81127.0,0.0003378]
[1741882792048,0.246508,81133.0,81127.0,0.0003378]
[1741882792223,0.0001689,81134.0,81131.0,0.258838]
[1741882792426,0.0001689,81134.0,81132.0,0.246509]
[1741882792605,0.0001689,81134.0,81133.0,0.012325]
[1741882792801,0.0001689,81134.0,81127.0,0.0023378]
[1741882793007,0.012325,81130.0,81127.0,0.0023378]
[1741882793215,0.246522,81129.0,81127.0,0.0023378]
[1741882793417,0.012325,81132.0,81127.0,0.0013378]
[1741882793796,0.2590019,81134.0,81128.0,0.246524]
[1741882794118,0.246519,81130.0,81127.0,0.0013378]
[1741882794454,0.0001689,81134.0,81131.0,0.012325]
[1741882794655,0.0001689,81134.0,81132.0,0.246509]
[1741882795158,0.0001689,81134.0,81133.0,0.012325]
[1741882796340,0.0001689,81134.0,81133.0,0.014325]
[1741882797343,0.0001689,81134.0,81133.0,1.514325]
[1741882797568,0.0001689,81134.0,81133.0,1.515325]
[1741882798030,0.0001689,81134.0,81133.0,1.63502599]
[1741882798649,0.0001689,81134.0,81133.0,1.63302599]
[1741882799031,0.0011689,81134.0,81133.0,1.63802599]
[1741882799639,0.0011689,81134.0,81133.0,1.63702599]
[1741882800008,0.0011689,81134.0,81133.0,1.64202599]
[1741882800391,0.0011689,81134.0,81133.0,0.01]
[1741882800392,0.0134939,81134.0,81133.0,0.01]
[1741882800902,0.0134939,81134.0,81133.0,0.022325]
[1741882800903,0.0011689,81134.0,81133.0,0.022325]
[1741882801095,0.0134939,81134.0,81133.0,0.01]
[1741882801543,0.0001689,81134.0,81133.0,0.005]
[1741882801901,0.0001689,81134.0,81133.0,0.009]
[1741882802116,0.0001689,81134.0,81133.0,0.267833]
[1741882802317,0.0001689,81134.0,81133.0,0.263833]
[1741882802527,0.0001689,81134.0,81133.0,0.005]
[1741882802782,0.0001689,81134.0,81133.0,0.016325]
[1741882803211,0.0001689,81134.0,81133.0,0.015325]
[1741882803415,0.0001689,81134.0,81133.0,0.012325]
[1741882803592,0.0001689,81134.0,81133.0,0.019325]
[1741882803793,0.0001689,81134.0,81133.0,0.14025837]
[1741882803996,0.0001689,81134.0,81133.0,0.15479909]
[1741882804179,9e-07,81134.0,81133.0,0.53569909]
[1741882804382,9e-07,81134.0,81133.0,0.53446684]
[1741882804596,9e-07,81134.0,81133.0,2.08146684]
[1741882804789,9e-07,81134.0,81133.0,2.03146684]
[1741882805094,9e-07,81134.0,81133.0,2.1056848]
[1741882805312,9e-07,81134.0,81133.0,2.1016848]
[1741882805578,9e-07,81134.0,81133.0,2.0566848]
[1741882805963,9e-07,81134.0,81133.0,2.0596848]
[1741882806168,9e-07,81134.0,81133.0,2.0546848]
[1741882806395,9e-07,81134.0,81133.0,2.0566848]
[1741882806568,7e-07,81151.0,81150.0,0.57331985]
[1741882806774,7e-07,81151.0,81150.0,0.84958084]
[1741882807411,7e-07,81151.0,81150.0,2.34958084]
[1741882807839,7e-07,81151.0,81150.0,2.03503999]
[1741882808053,7e-07,81151.0,81150.0,1.763779]
[1741882808273,0.0123227,81151.0,81150.0,0.005]
[1741882808631,0.43324787,81151.0,81150.0,0.005]
[1741882808834,0.43202369,81151.0,81150.0,0.005]
[1741882809258,0.43202369,81151.0,81150.0,0.011]
[1741882809663,0.43202369,81151.0,81118.0,0.01153442]
[1741882809664,0.258846,81129.0,81118.0,0.01153442]
[1741882809821,0.258846,81129.0,81121.0,0.15668]
[1741882810020,0.258846,81129.0,81120.0,0.246547]
[1741882810223,0.258846,81129.0,81120.0,0.258874]
[1741882810525,0.258846,81129.0,81123.0,0.012326]
[1741882810721,0.24649,81139.0,81132.0,0.012325]
[1741882811006,0.012324,81137.0,81128.0,0.0043376]
[1741882811283,0.246518,81130.0,81128.0,0.0043376]
[1741882811487,0.258843,81130.0,81128.0,0.0043376]
[1741882811682,0.012326,81129.0,81128.0,0.0043376]
[1741882811986,0.012326,81129.0,81128.0,0.0003376]
[1741882812230,0.258835,81133.0,81128.0,0.0053376]
[1741882812406,0.258842,81131.0,81128.0,0.0053376]
[1741882812811,0.258846,81129.0,81128.0,0.0053376]
[1741882812966,0.012325,81130.0,81128.0,0.0003376]
[1741882813394,0.012325,81134.0,81128.0,0.0003376]
[1741882813395,0.258823,81137.0,81130.0,0.012325]
[1741882813564,0.25883,81135.0,81130.0,0.012325]
[1741882813770,0.258833,81134.0,81129.0,0.2591838]
[1741882813977,0.25883,81135.0,81130.0,0.25884]
[1741882814190,0.012324,81140.0,81129.0,0.2591838]
[1741882814191,0.312323,81146.0,81136.0,0.012324]
[1741882814383,0.01235689,81142.0,81137.0,0.012324]
[1741882814596,0.012324,81141.0,81131.0,0.246513]
[1741882814803,7e-07,81151.0,81138.0,0.012324]
[1741882815022,0.246465,81148.0,81142.0,0.246479]
[1741882815167,7e-07,81151.0,81147.0,0.012323]
[1741882815350,7e-07,81151.0,81150.0,0.258779]
[1741882815731,8e-07,81159.0,81158.0,0.258753]
[1741882815950,8e-07,81159.0,81158.0,2.65905399]
[1741882816127,8e-07,81159.0,81158.0,2.65605399]
[1741882816334,8e-07,81159.0,81158.0,3.03255399]
[1741882816858,8e-07,81159.0,81158.0,2.95605399]
[1741882816973,8e-07,81159.0,81158.0,2.65605399]
[1741882817636,8e-07,81159.0,81158.0,2.64873299]
[1741882817793,8e-07,81159.0,81158.0,2.541353]
[1741882818222,0.0010008,81159.0,81158.0,2.67105399]
[1741882818629,0.0010008,81159.0,81158.0,2.66605399]
[1741882818947,8e-07,81159.0,81158.0,2.66705399]
[1741882819372,8e-07,81159.0,81158.0,2.68759484]
[1741882819941,8e-07,81159.0,81158.0,2.553353]
[1741882820112,8e-07,81159.0,81158.0,2.68759484]
[1741882820309,8e-07,81159.0,81158.0,2.98759484]
[1741882820553,8e-07,81159.0,81158.0,3.03759484]
[1741882820806,8e-07,81159.0,81158.0,2.98759484]
[1741882821387,8e-07,81159.0,81158.0,2.98159484]
[1741882821991,8e-07,81159.0,81158.0,2.98759484]
[1741882822190,8e-07,81159.0,81158.0,2.97559484]
[1741882822386,8e-07,81159.0,81158.0,3.13763484]
[1741882822592,8e-07,81159.0,81158.0,3.14363484]
[1741882823652,8e-07,81159.0,81158.0,2.853353]
[1741882823865,8e-07,81159.0,81158.0,1.509153]
[1741882824682,8e-07,81159.0,81158.0,3.003153]
[1741882825040,8e-07,81159.0,81158.0,3.008153]
[1741882825464,8e-07,81159.0,81158.0,3.002153]
[1741882825671,8e-07,81159.0,81158.0,3.008153]
[1741882826647,8e-07,81159.0,81158.0,0.7939376]
[1741882826833,8e-07,81159.0,81158.0,0.8062586]
[1741882827453,8e-07,81159.0,81158.0,0.7952586]
[1741882827697,8e-07,81159.0,81158.0,0.7829376]
[1741882827916,8e-07,81159.0,81158.0,0.8042586]
[1741882828110,8e-07,81159.0,81158.0,0.8002586]
[1741882828395,8e-07,81159.0,81158.0,0.7952586]
[1741882828599,8e-07,81159.0,81158.0,0.8032586]
[1741882830370,0.2587508,81159.0,81158.0,0.7909376]
[1741882831286,8e-07,81159.0,81158.0,1.0496906]
[1741882831485,8e-07,81159.0,81158.0,0.7909376]
[1741882831721,0.2587508,81159.0,81158.0,0.7909376]
[1741882831852,8e-07,81159.0,81158.0,0.7909376]
[1741882832235,0.2587508,81159.0,81158.0,0.7909376]
[1741882832547,0.26832637,81159.0,81158.0,0.7909376]
[1741882832748,0.00957637,81159.0,81158.0,1.0373696]
[1741882832956,0.00957637,81159.0,81158.0,1.0496906]
[1741882833176,8e-07,81159.0,81158.0,1.0496906]
[1741882833755,8e-07,81159.0,81158.0,0.7909376]
[1741882833962,0.02189898,81159.0,81158.0,0.7909376]
[1741882834160,0.00957798,81159.0,81158.0,0.7909376]
[1741882835029,0.00957798,81159.0,81158.0,0.8032586]
[1741882835239,0.00957798,81159.0,81158.0,0.92295959]
[1741882835412,0.00957798,81159.0,81158.0,1.23750044]
[1741882835616,8e-07,81159.0,81158.0,1.23750044]
[1741882835819,8e-07,81159.0,81158.0,2.73750044]
[1741882837029,8e-07,81159.0,81158.0,2.73250044]
[1741882837248,8e-07,81159.0,81158.0,2.72950044]
[1741882837592,8e-07,81159.0,81158.0,2.74150044]
[1741882837901,8e-07,81159.0,81158.0,2.75400604]
[1741882838049,8e-07,81159.0,81158.0,2.7560986]
[1741882838253,8e-07,81159.0,81158.0,2.4620986]
[1741882838417,8e-07,81159.0,81158.0,2.4560986]
[1741882838621,8e-07,81159.0,81158.0,2.86979959]
[1741882838821,8e-07,81159.0,81158.0,2.87579959]
[1741882839019,8e-07,81159.0,81158.0,2.88179959]
[1741882839671,8e-07,81159.0,81158.0,2.87579959]
[1741882840251,8e-07,81159.0,81158.0,2.86979959]
[1741882840682,8e-07,81159.0,81158.0,2.87579959]
[1741882841121,8e-07,81159.0,81158.0,2.87479959]
[1741882841325,8e-07,81159.0,81158.0,2.86979959]
[1741882841526,8e-07,81159.0,81158.0,2.57579959]
[1741882841803,8e-07,81159.0,81158.0,2.58179959]
[1741882841965,8e-07,81159.0,81158.0,2.56979959]
[1741882842164,8e-07,81159.0,81158.0,2.57579959]
[1741882842361,8e-07,81159.0,81158.0,2.58179959]
[1741882842734,8e-07,81159.0,81158.0,2.89634044]
[1741882843618,8e-07,81159.0,81158.0,2.72095959]
[1741882843840,8e-07,81159.0,81158.0,2.87611959]
[1741882844058,8e-07,81159.0,81158.0,2.88211959]
[1741882844261,8e-07,81159.0,81158.0,2.89666044]
[1741882844606,8e-07,81159.0,81158.0,2.89066044]
[1741882844868,8e-07,81159.0,81158.0,2.89666044]
[1741882845072,8e-07,81159.0,81158.0,2.89066044]
[1741882845451,8e-07,81159.0,81158.0,2.88466044]
[1741882845655,8e-07,81159.0,81158.0,2.89066044]
[1741882846137,8e-07,81159.0,81158.0,2.93966044]
[1741882846337,8e-07,81159.0,81158.0,2.89566044]
[1741882846486,8e-07,81159.0,81158.0,2.94566044]
[1741882847045,0.000169,81201.0,81200.0,0.25862]
[1741882847174,0.000169,81201.0,81200.0,0.53316099]
[1741882847837,0.000169,81201.0,81200.0,2.03308099]
[1741882848148,0.000169,81201.0,81200.0,2.04551899]
[1741882848690,0.000169,81201.0,81200.0,2.04951899]
[1741882849218,6.743e-05,81201.0,81200.0,2.04951899]
[1741882849771,6.743e-05,81201.0,81200.0,2.36905984]
[1741882849988,4.3e-07,81201.0,81200.0,2.36905984]
[1741882850601,4.3e-07,81201.0,81200.0,2.36505984]
[1741882850805,8.3e-07,81205.0,81204.0,0.558607]
[1741882851016,8.3e-07,81205.0,81204.0,0.69284884]
[1741882852509,8.3e-07,81205.0,81204.0,0.74284884]
[1741882853062,8.3e-07,81205.0,81204.0,0.74784884]
[1741882853487,8.3e-07,81205.0,81204.0,0.79294884]
[1741882853707,8.3e-07,81205.0,81204.0,0.80494884]
[1741882853895,8.3e-07,81205.0,81204.0,0.79894884]
[1741882854097,8.3e-07,81205.0,81204.0,0.74294884]
[1741882854429,8.3e-07,81205.0,81204.0,0.79894884]
[1741882854597,8.3e-07,81205.0,81204.0,2.25494884]
[1741882854798,8.3e-07,81205.0,81204.0,2.35956884]
[1741882855249,8.3e-07,81205.0,81204.0,2.36456884]
[1741882855409,5.3e-07,81216.0,81215.0,0.32685285]
[1741882855570,5.3e-07,81216.0,81215.0,0.44655384]
[1741882856219,5.3e-07,81216.0,81215.0,1.94655384]
[1741882856779,5.3e-07,81216.0,81215.0,1.95855384]
[1741882858455,5.3e-07,81216.0,81215.0,1.512]
[1741882858718,0.01231253,81216.0,81215.0,0.012]
[1741882858859,5.3e-07,81216.0,81215.0,0.012]
[1741882859061,0.0039721,81216.0,81215.0,0.024312]
[1741882859261,5.3e-07,81216.0,81215.0,0.14401299]